Workbook

Sheet Notes
A1: These component simulations were created by the Office of Accountability for the 2024-2025 Report Card. If you have any questions or would like to report an error, then please contact us at Accountability@education.ohio.gov. The sheets are all protected, but if you wish to make changes you can unlock them by going to "Review" and clicking "Unprotect Sheet." There is no password.
A3: Update Notes | B3: Date
A4: Calculator created | B4: 2024-11-06
A5: Checked calculations and updated data notes | B5: 2025-03-03
A6: Further updated data notes, fixed gap closing improvement points, set protection for cells, added in technical documents | B6: 2025-03-26
A7: Fixed protection problems, fixed gap closing rating | B7: 2025-03-27
A8: Added overall rating grade scale | B8: 2025-04-02
A9: Cosmetic changes, adjusted gap closing improvement points to account for meeting exact 2030 goal | B9: 2025-04-09

Sheet Achievement
A1: How To Use This Simulator:
A2: Input the number of students passing the required tests and the number of students who are in grade 12 at any time during the school year and the number of additional students who reach age 21 years and 9 months prior to June 30.
A5: High School Test Passage Rate | E5: Overall Percentage | I5: Achievement Component Rating
J7: Score Range | M7: Rating
J8: 0 | K8: to | L8: 0.32 | M8: Does Not Meet Standards
A9: # of Students Passing Required Tests | F9: Passage Rate | J9: 0.32 | K9: to | L9: 0.68 | M9: Meets Standards
F10: =IFERROR(A10/A14, "") -> 
J11: 0.68 | K11: to | L11: 1 | M11: Exceeds Standards
A12: The number of students who are in grade 12 at any time during the school year and the number of additional students who reach age 21 years and 9 months prior to June 30
J17: Achievement Component Rating | O17: =IF(AND(F10>=J11,F10<>""),"Exceeds Standards",IF(AND(F10>=J9,F10<L9),"Meets Standards",IF(AND(F10<L8,F10>=J8),"Does Not Meet Standards",IF(F10="","Not Rated","Error")))) -> Not Rated
A22: Achievement Component Technical Documentation

Sheet Progress
A1: How To Use This Simulator:
A2: Input the growth index score
A4: Value-Added Inputs | E4: Progress Component Rating
F8: Growth Index | I8: Rating
A9: Input Value-Added Growth Index | F9: Less than | H9: -2 | I9: Does Not Meet Standards
A10: Growth Index | F10: -2 | G10: to | H10: 2 | I10: Meets Standards
F11: Greater than or Equal to | H11: 2 | I11: Exceeds Standards
F14: Progress Component Rating | J14: =IF(AND(B10<H9),I9,IF(AND(B10>=F10,B10<H10,B10<>""),I10,IF(AND(B10>=H11),I11,IF(ISBLANK(B10),"Not Rated","Error")))) -> Not Rated
A18: Progress Component Technical Documentation

Sheet Gap Closing
A1: How To Use This Simulator:
A2: To use this simulator. Enter your gap closing measure data in the input boxes below (outlined in red).
A3: Select "Yes" or "No" under the Applicable column to add or remove measures from the component calculation | D3: SELECT YEAR | E3: 2024-2025
A5: Component Measure Inputs | D5: Goals | E5: Points | G5: Point Totals | O5: Gap Closing Component Rating
A6: ELP Measure | B6: Applicable | C6: English Learner Proficiency | D6: =E3 -> 2024-2025 | E6: Points | F6: Points Possible
A7: English Language Proficiency Improvement Indicator | B7: No | D7: =IF(E3="2021-2022",0.4305,IF(E3="2022-2023",0.466,IF(E3="2023-2024",0.5015,IF(E3="2024-2025",0.537,IF(E3="2025-2026",0.5725,IF(E3="2026-2027",0.608,IF(E3="2027-2028",0.6435,IF(E3="2028-2029",0.679,IF(E3="2029-2030",0.7145, IF(E3="2030-2031",0.75,0)))))))))) -> 0.537 | E7: =IF(AND(B7="Yes",C7>=D7),100,IF(AND(B7="YES",D9<>"Error",D9>=10%),100,0)) -> 0 | F7: =IF(B7="Yes",100,0) -> 0
C8: Previous Year Proficiency | D8: Change
D9: =IF(ISBLANK(C9),"Error",C7-C9) -> Error
A10: ELA Achievement Measure | B10: Applicable | C10: Performance Index | D10: =E3 -> 2024-2025 | E10: Points | F10: Points Possible
A11: ELA Achievement - All Students | B11: No | D11: =IF(E3="2021-2022",78.56,IF(E3="2022-2023",80.94,IF(E3="2023-2024",83.33,IF(E3="2024-2025",85.71,IF(E3="2025-2026",88.09,IF(E3="2026-2027",90.47,IF(E3="2027-2028",92.85,IF(E3="2028-2029",95.24,IF(E3="2029-2030",97.62, IF(E3="2030-2031",100,0)))))))))) -> 85.71 | E11: =IF(AND(B11="Yes",OR(C11>=D11,D13>=10)),100,IF(AND(B11="Yes",D13<10, D13>0),D13*10,0)) -> 0 | F11: =IF(B11="Yes",100,0) -> 0
C12: Previous Year Proficiency | D12: Improvement Points
D13: =IF(AND(ISNUMBER(C13), C11<>100),((C11-C13)/(100-C11))*100,0) -> 0
A14: ELA Achievement - American Indian/Alaskan Native | B14: No | D14: =IF(E3="2021-2022",69.67,IF(E3="2022-2023",71.26,IF(E3="2023-2024",72.86,IF(E3="2024-2025",74.46,IF(E3="2025-2026",76.05,IF(E3="2026-2027",77.65,IF(E3="2027-2028",79.24,IF(E3="2028-2029",80.84,IF(E3="2029-2030",82.44, IF(E3="2030-2031",84.03,0)))))))))) -> 74.46 | E14: =IF(AND(B14="Yes",OR(C14>=D14,D16>=10)),100,IF(AND(B14="Yes",D16>0,D16<10),D16*10,0)) -> 0 | F14: =IF(B14="Yes",100,0) -> 0
C15: Previous Year Proficiency | D15: Improvement Points
D16: =IF(AND(ISNUMBER(C16), C14<>84.03),((C14-C16)/(84.03-C14))*100,0) -> 0
A17: ELA Achievement - Asian/Pacific Islander | B17: No | D17: =IF(E3="2021-2022",86.89,IF(E3="2022-2023",87.58,IF(E3="2023-2024",88.27,IF(E3="2024-2025",88.96,IF(E3="2025-2026",89.65,IF(E3="2026-2027",90.34,IF(E3="2027-2028",91.03,IF(E3="2028-2029",91.72,IF(E3="2029-2030",92.41, IF(E3="2030-2031",93.1,0)))))))))) -> 88.96 | E17: =IF(AND(B17="Yes",OR(C17>=D17,D19>=10)),100,IF(AND(B17="Yes",D19>0,D19<10),D19*10,0)) -> 0 | F17: =IF(B17="Yes",100,0) -> 0
C18: Previous Year Proficiency | D18: Improvement Points
D19: =IF(AND(ISNUMBER(C19),C17<>93.1),((C17-C19)/(93.1-C17))*100,0) -> 0
A20: ELA Achievement - Black, Non-Hispanic | B20: No | D20: =IF(E3="2021-2022",54.79,IF(E3="2022-2023",57.17,IF(E3="2023-2024",59.55,IF(E3="2024-2025",61.93,IF(E3="2025-2026",64.31,IF(E3="2026-2027",66.69,IF(E3="2027-2028",69.07,IF(E3="2028-2029",71.45,IF(E3="2029-2030",73.83, IF(E3="2030-2031",76.21,0)))))))))) -> 61.93 | E20: =IF(AND(B20="Yes",OR(C20>=D20,D22>=10)),100,IF(AND(B20="Yes",D22>0,D22<10),D22*10,0)) -> 0 | F20: =IF(B20="Yes",100,0) -> 0
C21: Previous Year Proficiency | D21: Improvement Points
D22: =IF(AND(ISNUMBER(C22),C20<>76.21),((C20-C22)/(76.21-C20))*100,0) -> 0
A23: ELA Achievement - Hispanic | B23: No | D23: =IF(E3="2021-2022",66.28,IF(E3="2022-2023",68.05,IF(E3="2023-2024",69.83,IF(E3="2024-2025",71.6,IF(E3="2025-2026",73.83,IF(E3="2026-2027",75.15,IF(E3="2027-2028",76.93,IF(E3="2028-2029",78.7,IF(E3="2029-2030",80.48, IF(E3="2030-2031",82.25,0)))))))))) -> 71.6 | E23: =IF(AND(B23="Yes",OR(C23>=D23,D25>=10)),100,IF(AND(B23="Yes",D25>0,D25<10),D25*10,0)) -> 0 | F23: =IF(B23="Yes",100,0) -> 0
C24: Previous Year Proficiency | D24: Improvement Points
D25: =IF(AND(ISNUMBER(C25),C23<>82.25),((C23-C25)/(82.25-C23))*100,0) -> 0
A26: ELA Achievement - Multiracial | B26: No | D26: =IF(E3="2021-2022",71.64,IF(E3="2022-2023",73.14,IF(E3="2023-2024",74.63,IF(E3="2024-2025",76.12,IF(E3="2025-2026",77.61,IF(E3="2026-2027",79.11,IF(E3="2027-2028",80.6,IF(E3="2028-2029",82.09,IF(E3="2029-2030",83.58, IF(E3="2030-2031",85.08,0)))))))))) -> 76.12 | E26: =IF(AND(B26="Yes",OR(C26>=D26,D28>=10)),100,IF(AND(B26="Yes", D28>0, D28<10), D28*10,0)) -> 0 | F26: =IF(B26="Yes",100,0) -> 0
C27: Previous Year Proficiency | D27: Improvement Points
D28: =IF(AND(ISNUMBER(C28),C26<>85.08),((C26-C28)/(85.08-C26))*100,0) -> 0
A29: ELA Achievement - White, Non-Hispanic | B29: No | D29: =IF(E3="2021-2022",84.26,IF(E3="2022-2023",85.09,IF(E3="2023-2024",85.92,IF(E3="2024-2025",86.74,IF(E3="2025-2026",87.57,IF(E3="2026-2027",88.4,IF(E3="2027-2028",89.23,IF(E3="2028-2029",90.06,IF(E3="2029-2030",90.89, IF(E3="2030-2031",91.72,0)))))))))) -> 86.74 | E29: =IF(AND(B29="Yes",OR(C29>=D29,D31>=10)),100,IF(AND(B29="Yes",D31>0,D31<10),D31*10,0)) -> 0 | F29: =IF(B29="Yes",100,0) -> 0
C30: Previous Year Proficiency | D30: Improvement Points
D31: =IF(AND(ISNUMBER(C31),C29<>91.72),((C29-C31)/(91.72-C29))*100,0) -> 0
A32: ELA Achievement - Economic Disadvantaged | B32: No | D32: =IF(E3="2021-2022",64.22,IF(E3="2022-2023",66.1,IF(E3="2023-2024",67.98,IF(E3="2024-2025",69.87,IF(E3="2025-2026",71.75,IF(E3="2026-2027",73.63,IF(E3="2027-2028",75.52,IF(E3="2028-2029",77.4,IF(E3="2029-2030",79.28, IF(E3="2030-2031",81.17,0)))))))))) -> 69.87 | E32: =IF(AND(B32="Yes",OR(C32>=D32,D34>=10)),100,IF(AND(B32="Yes",D34>0,D34<10),D34*10,0)) -> 0 | F32: =IF(B32="Yes",100,0) -> 0
C33: Previous Year Proficiency | D33: Improvement Points
D34: =IF(AND(ISNUMBER(C34),C32<>81.17),((C32-C34)/(81.17-C32))*100,0) -> 0
A35: ELA Achievement - Students with Disabilities | B35: No | D35: =IF(E3="2021-2022",50.64,IF(E3="2022-2023",53.24,IF(E3="2023-2024",55.84,IF(E3="2024-2025",58.43,IF(E3="2025-2026",61.03,IF(E3="2026-2027",63.63,IF(E3="2027-2028",66.23,IF(E3="2028-2029",68.83,IF(E3="2029-2030",71.42, IF(E3="2030-2031",74.02,0)))))))))) -> 58.43 | E35: =IF(AND(B35="Yes",OR(C35>=D35,D37>=10)),100,IF(AND(B35="Yes",D37>0,D37<10),D37*10,0)) -> 0 | F35: =IF(B35="Yes",100,0) -> 0
C36: Previous Year Proficiency | D36: Improvement Points
D37: =IF(AND(ISNUMBER(C37),C35<>74.02),((C35-C37)/(74.02))*100,0) -> 0
A38: ELA Achievement -English Learners | B38: No | D38: =IF(E3="2021-2022",62.6,IF(E3="2022-2023",64.57,IF(E3="2023-2024",66.54,IF(E3="2024-2025",68.51,IF(E3="2025-2026",70.48,IF(E3="2026-2027",72.44,IF(E3="2027-2028",74.41,IF(E3="2028-2029",76.38,IF(E3="2029-2030",78.35, IF(E3="2030-2031",80.32,0)))))))))) -> 68.51 | E38: =IF(AND(B38="Yes",OR(C38>=D38,D40>=10)),100,IF(AND(B38="Yes",D40>0,D40<10),D40*10,0)) -> 0 | F38: =IF(B38="Yes",100,0) -> 0
C39: Previous Year Proficiency | D39: Improvement Points
D40: =IF(AND(ISNUMBER(C40),C38<>80.32),((C38-C40)/(80.32-C38))*100,0) -> 0 | P40: Participation Demotion
A41: Math Achievement Measure | B41: ` | C41: Performance Index | D41: =E3 -> 2024-2025 | E41: Points | F41: Points Possible | P41: One or more student groups has a participation rate < 95% | T41: Points after Demotion
A42: Math Achievement - All Students | B42: No | D42: =IF(E3="2021-2022",71.12,IF(E3="2022-2023",74.33,IF(E3="2023-2024",77.54,IF(E3="2024-2025",80.75,IF(E3="2025-2026",83.96,IF(E3="2026-2027",87.16,IF(E3="2027-2028",90.37,IF(E3="2028-2029",93.58,IF(E3="2029-2030",96.79, IF(E3="2030-2031",100,0)))))))))) -> 80.75 | E42: =IF(AND(B42="Yes",OR(C42>=D42,D44>=10)),100,IF(AND(B42="Yes",D44>0,D44<10),D44*10,0)) -> 0 | F42: =IF(B42="Yes",100,0) -> 0
C43: Previous Year Proficiency | D43: Improvement Points | P43: No | T43: =IF(P43="Yes",K53-5,K53) -> 
D44: =IF(AND(ISNUMBER(C44), C42<>100),((C42-C44)/(100-C42))*100,0) -> 0
A45: Math Achievement - American Indian/Alaskan Native | B45: No | D45: =IF(E3="2021-2022",60.79,IF(E3="2022-2023",62.85,IF(E3="2023-2024",64.91,IF(E3="2024-2025",66.98,IF(E3="2025-2026",69.04,IF(E3="2026-2027",71.11,IF(E3="2027-2028",73.17,IF(E3="2028-2029",75.23,IF(E3="2029-2030",77.3, IF(E3="2030-2031",79.36,0)))))))))) -> 66.98 | E45: =IF(AND(B45="Yes",OR(C45>=D45,D47>=10)),100,IF(AND(B45="Yes",D47>0,D47<10),D47*10,0)) -> 0 | F45: =IF(B45="Yes",100,0) -> 0
C46: Previous Year Proficiency | D46: Improvement Points
D47: =IF(AND(ISNUMBER(C47), C45<>79.36),((C45-C47)/(79.36-C45))*100,0) -> 0
A48: Math Achievement - Asian/Pacific Islander | B48: No | D48: =IF(E3="2021-2022",83.93,IF(E3="2022-2023",84.78,IF(E3="2023-2024",85.62,IF(E3="2024-2025",86.47,IF(E3="2025-2026",87.32,IF(E3="2026-2027",88.16,IF(E3="2027-2028",89.01,IF(E3="2028-2029",89.85,IF(E3="2029-2030",90.7, IF(E3="2030-2031",91.54,0)))))))))) -> 86.47 | E48: =IF(AND(B48="Yes",OR(C48>=D48,D50>=10)),100,IF(AND(B48="Yes",D50>0,D50<10),D50*10,0)) -> 0 | F48: =IF(B48="Yes",100,0) -> 0 | I48: Measure | K48: Points Total | L48: Points Possible | M48: Points Earned
C49: Previous Year Proficiency | D49: Improvement Points | I49: ELP Indicator | K49: =SUM(E7) -> 0 | L49: =SUM(F7) -> 0 | M49: =IF(L49=0,"",(K49/L49)*100) -> 
D50: =IF(AND(ISNUMBER(C50),C48<>91.54),((C48-C50)/(91.54-C48))*100,0) -> 0 | I50: ELA Achievement | K50: =SUM(E11:E38) -> 0 | L50: =SUM(F11:F38) -> 0 | M50: =IF(L50=0,"",(K50/L50)*100) -> 
A51: Math Achievement - Black, Non-Hispanic | B51: No | D51: =IF(E3="2021-2022",44.09,IF(E3="2022-2023",47.03,IF(E3="2023-2024",49.97,IF(E3="2024-2025",52.92,IF(E3="2025-2026",55.86,IF(E3="2026-2027",58.8,IF(E3="2027-2028",61.74,IF(E3="2028-2029",64.69,IF(E3="2029-2030",67.63, IF(E3="2030-2031",70.57,0)))))))))) -> 52.92 | E51: =IF(AND(B51="Yes",OR(C51>=D51,D53>=10)),100,IF(AND(B51="Yes",D53>0,D53<10),D53*10,0)) -> 0 | F51: =IF(B51="Yes",100,0) -> 0 | I51: Math Achievement | K51: =SUM(E42:E69) -> 0 | L51: =SUM(F42:F69) -> 0 | M51: =IF(L51=0,"",(K51/L51)*100) ->  | P51: Score Range | S51: Rating
C52: Previous Year Proficiency | D52: Improvement Points | I52: Graduation | K52: =SUM(E73:E100) -> 0 | L52: =SUM(F73:F100) -> 0 | M52: =IF(L52=0,"",(K52/L52)*100) ->  | P52: 0 | Q52: to | R52: 0.01 | S52: Does Not Meet Standards
D53: =IF(AND(ISNUMBER(C53),C51<>70.57),((C51-C53)/(70.57-C51))*100,0) -> 0 | I53: Preliminary Points | K53: =IF(AND(M49="",M50="",M51="",M52=""),"",AVERAGE(M49:M52)) ->  | P53: 0.01 | Q53: to | R53: 0.36 | S53: Meets Standards
A54: Math Achievement - Hispanic | B54: No | D54: =IF(E3="2021-2022",57.7,IF(E3="2022-2023",59.93,IF(E3="2023-2024",62.15,IF(E3="2024-2025",64.38,IF(E3="2025-2026",66.61,IF(E3="2026-2027",68.83,IF(E3="2027-2028",71.06,IF(E3="2028-2029",73.29,IF(E3="2029-2030",75.51, IF(E3="2030-2031",77.74,0)))))))))) -> 64.38 | E54: =IF(AND(B54="Yes",OR(C54>=D54,D56>=10)),100,IF(AND(B54="Yes",D56>0,D56<10),D56*10,0)) -> 0 | F54: =IF(B54="Yes",100,0) -> 0 | P54: 0.36 | Q54: to | R54: 1 | S54: Exceeds Standards
C55: Previous Year Proficiency | D55: Improvement Points
D56: =IF(AND(ISNUMBER(C56),C54<>77.74),((C54-C56)/(77.74-C54))*100,0) -> 0
A57: Math Achievement - Multiracial | B57: No | D57: =IF(E3="2021-2022",61.72,IF(E3="2022-2023",63.73,IF(E3="2023-2024",65.75,IF(E3="2024-2025",67.76,IF(E3="2025-2026",69.78,IF(E3="2026-2027",71.79,IF(E3="2027-2028",73.81,IF(E3="2028-2029",75.82,IF(E3="2029-2030",77.84, IF(E3="2030-2031",79.85,0)))))))))) -> 67.76 | E57: =IF(AND(B57="Yes",OR(C57>=D57,D59>=10)),100,IF(AND(B57="Yes",D59>0,D59<10),D59*10,0)) -> 0 | F57: =IF(B57="Yes",100,0) -> 0
C58: Previous Year Proficiency | D58: Improvement Points
D59: =IF(AND(ISNUMBER(C59),C57<>79.85),((C57-C59)/(79.85-C57))*100,0) -> 0
A60: Math Achievement - White, Non-Hispanic | B60: No | D60: =IF(E3="2021-2022",77.23,IF(E3="2022-2023",78.43,IF(E3="2023-2024",79.63,IF(E3="2024-2025",80.83,IF(E3="2025-2026",82.03,IF(E3="2026-2027",83.22,IF(E3="2027-2028",84.42,IF(E3="2028-2029",85.62,IF(E3="2029-2030",86.82, IF(E3="2030-2031",88.02,0)))))))))) -> 80.83 | E60: =IF(AND(B60="Yes",OR(C60>=D60,D62>=10)),100,IF(AND(B60="Yes",D62>0,D62<10),D62*10,0)) -> 0 | F60: =IF(B60="Yes",100,0) -> 0
C61: Previous Year Proficiency | D61: Improvement Points
D62: =IF(AND(ISNUMBER(C62),C60<>88.02),((C60-C62)/(88.02-C60))*100,0) -> 0
A63: Math Achievement - Economic Disadvantaged | B63: No | D63: =IF(E3="2021-2022",55.12,IF(E3="2022-2023",57.48,IF(E3="2023-2024",59.84,IF(E3="2024-2025",62.21,IF(E3="2025-2026",64.57,IF(E3="2026-2027",66.93,IF(E3="2027-2028",69.29,IF(E3="2028-2029",71.65,IF(E3="2029-2030",74.02, IF(E3="2030-2031",76.38,0)))))))))) -> 62.21 | E63: =IF(AND(B63="Yes",OR(C63>=D63,D65>=10)),100,IF(AND(B63="Yes",D65>0,D65<10),D65*10,0)) -> 0 | F63: =IF(B63="Yes",100,0) -> 0 | P63: Gap Closing Percent | T63: =IF(K53="","",T43/100) -> 
C64: Previous Year Proficiency | D64: Improvement Points | P64: Gap Closing Rating | T64: =IF(AND(T63<R52,K53<>""),S52,IF(AND(T63>=P53,T63<R53,K53<>""),S53,IF(AND(T63>=P54,K53<>""),S54,IF(T63="","Not Rated","Error")))) -> Not Rated
D65: =IF(AND(ISNUMBER(C65),C63<>76.38),((C63-C65)/(76.38-C63))*100,0) -> 0
A66: Math Achievement - Students with Diabilities | B66: No | D66: =IF(E3="2021-2022",45.52,IF(E3="2022-2023",48.39,IF(E3="2023-2024",51.26,IF(E3="2024-2025",54.12,IF(E3="2025-2026",56.99,IF(E3="2026-2027",59.86,IF(E3="2027-2028",62.73,IF(E3="2028-2029",65.59,IF(E3="2029-2030",68.46, IF(E3="2030-2031",71.33,0)))))))))) -> 54.12 | E66: =IF(AND(B66="Yes",OR(C66>=D66,D68>=10)),100,IF(AND(B66="Yes",D68>0,D68<10),D68*10,0)) -> 0 | F66: =IF(B66="Yes",100,0) -> 0
C67: Previous Year Proficiency | D67: Improvement Points
D68: =IF(AND(ISNUMBER(C68),C66<>71.33),((C66-C68)/(71.33-C66))*100,0) -> 0
A69: Math Achievement -English Learners | B69: No | D69: =IF(E3="2021-2022",56.97,IF(E3="2022-2023",59.23,IF(E3="2023-2024",61.5,IF(E3="2024-2025",63.76,IF(E3="2025-2026",66.03,IF(E3="2026-2027",68.29,IF(E3="2027-2028",70.56,IF(E3="2028-2029",72.82,IF(E3="2029-2030",75.09, IF(E3="2030-2031",77.35,0)))))))))) -> 63.76 | E69: =IF(AND(B69="Yes",OR(C69>=D69,D71>=10)),100,IF(AND(B69="Yes",D71>0,D71<10),D71*10,0)) -> 0 | F69: =IF(B69="Yes",100,0) -> 0
C70: Previous Year Proficiency | D70: Improvement Points
D71: =IF(AND(ISNUMBER(C71),C69<>77.35),((C69-C71)/(77.35-C69))*100,0) -> 0
A72: Graduation Measure | B72: Applicable | C72: Graduation Rate | D72: =E3 -> 2024-2025 | E72: Points | F72: Points Possible
A73: Graduation - All Students | B73: No | D73: =IF(E3="2021-2022",0.8813,IF(E3="2022-2023",0.8906,IF(E3="2023-2024",0.8999,IF(E3="2024-2025",0.9092,IF(E3="2025-2026",0.9185,IF(E3="2026-2027",0.9278,IF(E3="2027-2028",0.9371,IF(E3="2028-2029",0.9464,IF(E3="2029-2030",0.9557, IF(E3="2030-2031",0.965,0)))))))))) -> 0.9092 | E73: =IF(AND(B73="Yes",OR(C73>=D73,D75>=10)),100,IF(AND(B73="Yes",D75>0,D75<10),D75*10,0)) -> 0 | F73: =IF(B73="Yes",100,0) -> 0
C74: Previous Year Graduation Rate | D74: Improvement Points
D75: =IF(AND(ISNUMBER(C75),C73<>0.965),((C73-C75)/(0.965-C73))*100,0) -> 0
A76: Graduation - American Indian/Alaskan Native | B76: No | D76: =IF(E3="2021-2022",0.8064,IF(E3="2022-2023",0.8147,IF(E3="2023-2024",0.8231,IF(E3="2024-2025",0.8314,IF(E3="2025-2026",0.8398,IF(E3="2026-2027",0.8481,IF(E3="2027-2028",0.8565,IF(E3="2028-2029",0.8648,IF(E3="2029-2030",0.8732, IF(E3="2030-2031",0.8815,0)))))))))) -> 0.8314 | E76: =IF(AND(B76="Yes",OR(C76>=D76,D78>=10)),100,IF(AND(B76="Yes",D78>0,D78<10),D78*10,0)) -> 0 | F76: =IF(B76="Yes",100,0) -> 0
C77: Previous Year Graduation Rate | D77: Improvement Points
D78: =IF(AND(ISNUMBER(C78),C76<>0.8815),((C76-C78)/(0.8815-C76))*100,0) -> 0
A79: Graduation - Asian/Pacific Islander | B79: No | D79: =IF(E3="2021-2022",0.927,IF(E3="2022-2023",0.929,IF(E3="2023-2024",0.931,IF(E3="2024-2025",0.933,IF(E3="2025-2026",0.935,IF(E3="2026-2027",0.937,IF(E3="2027-2028",0.939,IF(E3="2028-2029",0.941,IF(E3="2029-2030",0.943, IF(E3="2030-2031",0.945,0)))))))))) -> 0.933 | E79: =IF(AND(B79="Yes",OR(C79>=D79,D81>=10)),100,IF(AND(B79="Yes",D81>0,D81<10),D81*10,0)) -> 0 | F79: =IF(B79="Yes",100,0) -> 0
C80: Previous Year Graduation Rate | D80: Improvement Points
D81: =IF(AND(ISNUMBER(C81),C79<>0.945),((C79-C81)/(0.945-C79))*100,0) -> 0
A82: Graduation - Black, Non-Hispanic | B82: No | D82: =IF(E3="2021-2022",0.7788,IF(E3="2022-2023",0.7886,IF(E3="2023-2024",0.7984,IF(E3="2024-2025",0.8082,IF(E3="2025-2026",0.818,IF(E3="2026-2027",0.8278,IF(E3="2027-2028",0.8376,IF(E3="2028-2029",0.8474,IF(E3="2029-2030",0.8572, IF(E3="2030-2031",0.867,0)))))))))) -> 0.8082 | E82: =IF(AND(B82="Yes",OR(C82>=D82,D84>=10)),100,IF(AND(B82="Yes",D84>0,D84<10),D84*10,0)) -> 0 | F82: =IF(B82="Yes",100,0) -> 0
C83: Previous Year Graduation Rate | D83: Improvement Points
D84: =IF(AND(ISNUMBER(C84),C82<>0.867),((C82-C84)/(0.867-C82))*100,0) -> 0
A85: Graduation - Hispanic | B85: No | D85: =IF(E3="2021-2022",0.7969,IF(E3="2022-2023",0.8057,IF(E3="2023-2024",0.8146,IF(E3="2024-2025",0.8234,IF(E3="2025-2026",0.8323,IF(E3="2026-2027",0.8411,IF(E3="2027-2028",0.85,IF(E3="2028-2029",0.8588,IF(E3="2029-2030",0.8677, IF(E3="2030-2031",0.8765,0)))))))))) -> 0.8234 | E85: =IF(AND(B85="Yes",OR(C85>=D85,D87>=10)),100,IF(AND(B85="Yes",D87>0,D87<10),D87*10,0)) -> 0 | F85: =IF(B85="Yes",100,0) -> 0
C86: Previous Year Graduation Rate | D86: Improvement Points
D87: =IF(AND(ISNUMBER(C87),C85<>0.8765),((C85-C87)/(0.8765-C85))*100,0) -> 0
A88: Graduation - Multiracial | B88: No | D88: =IF(E3="2021-2022",0.8425,IF(E3="2022-2023",0.8489,IF(E3="2023-2024",0.8554,IF(E3="2024-2025",0.8618,IF(E3="2025-2026",0.8683,IF(E3="2026-2027",0.8747,IF(E3="2027-2028",0.8812,IF(E3="2028-2029",0.8876,IF(E3="2029-2030",0.8941, IF(E3="2030-2031",0.9005,0)))))))))) -> 0.8618 | E88: =IF(AND(B88="Yes",OR(C88>=D88,D90>=10)),100,IF(AND(B88="Yes",D90>0,D90<10),D90*10,0)) -> 0 | F88: =IF(B88="Yes",100,0) -> 0
C89: Previous Year Graduation Rate | D89: Improvement Points
D90: =IF(AND(ISNUMBER(C90),C88<>0.9005),((C88-C90)/(0.9005-C88))*100,0) -> 0
A91: Graduation - White, Non-Hispanic | B91: No | D91: =IF(E3="2021-2022",0.9042,IF(E3="2022-2023",0.9074,IF(E3="2023-2024",0.9106,IF(E3="2024-2025",0.9138,IF(E3="2025-2026",0.917,IF(E3="2026-2027",0.9202,IF(E3="2027-2028",0.9234,IF(E3="2028-2029",0.9266,IF(E3="2029-2030",0.9298, IF(E3="2030-2031",0.933,0)))))))))) -> 0.9138 | E91: =IF(AND(B91="Yes",OR(C91>=D91,D93>=10)),100,IF(AND(B91="Yes",D93>0,D93<10),D93*10,0)) -> 0 | F91: =IF(B91="Yes",100,0) -> 0
C92: Previous Year Graduation Rate | D92: Improvement Points
D93: =IF(AND(ISNUMBER(C93),C91<>0.933),((C91-C93)/(0.933-C91))*100,0) -> 0
A94: Graduation - Economically Disadvantaged | B94: No | D94: =IF(E3="2021-2022",0.7931,IF(E3="2022-2023",0.8021,IF(E3="2023-2024",0.8112,IF(E3="2024-2025",0.8202,IF(E3="2025-2026",0.8293,IF(E3="2026-2027",0.8383,IF(E3="2027-2028",0.8474,IF(E3="2028-2029",0.8564,IF(E3="2029-2030",0.8655, IF(E3="2030-2031",0.8745,0)))))))))) -> 0.8202 | E94: =IF(AND(B94="Yes",OR(C94>=D94,D96>=10)),100,IF(AND(B94="Yes",D96>0,D96<10),D96*10,0)) -> 0 | F94: =IF(B94="Yes",100,0) -> 0
C95: Previous Year Graduation Rate | D95: Improvement Points
D96: =IF(AND(ISNUMBER(C96),C94<>0.8745),((C94-C96)/(0.8745-C94))*100,0) -> 0
A97: Graduation - Students with Disabilities | B97: No | D97: =IF(E3="2021-2022",0.7541,IF(E3="2022-2023",0.7652,IF(E3="2023-2024",0.7763,IF(E3="2024-2025",0.7874,IF(E3="2025-2026",0.7985,IF(E3="2026-2027",0.8096,IF(E3="2027-2028",0.8207,IF(E3="2028-2029",0.8318,IF(E3="2029-2030",0.8429, IF(E3="2030-2031",0.854,0)))))))))) -> 0.7874 | E97: =IF(AND(B97="Yes",OR(C97>=D97,D99>=10)),100,IF(AND(B97="Yes",D99>0,D99<10),D99*10,0)) -> 0 | F97: =IF(B97="Yes",100,0) -> 0
C98: Previous Year Graduation Rate | D98: Improvement Points
D99: =IF(AND(ISNUMBER(C99),C97<>0.854),((C97-C99)/(0.854-C97))*100,0) -> 0
A100: Graduation - English Learners | B100: No | D100: =IF(E3="2021-2022",0.7199,IF(E3="2022-2023",0.7328,IF(E3="2023-2024",0.7457,IF(E3="2024-2025",0.7586,IF(E3="2025-2026",0.7715,IF(E3="2026-2027",0.7844,IF(E3="2027-2028",0.7973,IF(E3="2028-2029",0.8102,IF(E3="2029-2030",0.8231, IF(E3="2030-2031",0.836,0)))))))))) -> 0.7586 | E100: =IF(AND(B100="Yes",OR(C100>=D100,D102>=10)),100,IF(AND(B100="Yes",D102>0,D102<10),D102*10,0)) -> 0 | F100: =IF(B100="Yes",100,0) -> 0
C101: Previous Year Graduation Rate | D101: Improvement Points
D102: =IF(AND(ISNUMBER(C102),C100<>0.836),((C100-C102)/(0.836-C100))*100,0) -> 0
A104: Gap Closing Technical Documentation

Sheet Graduation
A1: How To Use This Simulator:
A2: To use this simulator enter the number of four-year, five-year, six-year, seven-year, and eight-year graduates. Enter the number of students in each applicable cohort.
A5: Graduation Inputs | E5: Measure Weighting | K5: Graduation Component Rating
A9: Four-Year Graduates | B9: Students in the Class of Prior year | C9: Four-Year Adjusted Cohort Graduation Rate Meaure | L9: Combined Graduation Rate Range | O9: Rating
C10: =IF(OR(B10="",B10=0,A10>B10),"",A10/B10) ->  | F10: Total Graduates | G10: Total Students | I10: Combined Graduation Rate | L10: 0.4 | M10: To | N10: 1 | O10: Exceeds Standards | Q10: Graduation Component Rating
F11: =SUM(A10,A13,A16,A19,A22) -> 0 | G11: =SUM(B10,B13,B16,B19,B22) -> 0 | I11: =IF(OR(G11=0,F11>G11),"",F11/G11) ->  | L11: 0.12 | M11: To | N11: 0.4 | O11: Meets Standards | Q11: =IF(AND(I11<N12,I11<>""),O12,IF(AND(I11>=L11,I11<N11,I11<>""),O11,IF(AND(I11>=L10,I11<>""),O10,IF(I11="","Not Rated","ERROR")))) -> Not Rated
A12: Five-Year Graduates | B12: Students in the Class of 2 years Prior | C12: Five-Year Adjusted Cohort Graduation Rate Measure | L12: 0 | M12: To | N12: 0.12 | O12: Does Not Meet Standards
C13: =IF(OR(B13="",B13=0,A13>B13),"",A13/B13) -> 
A15: Six-Year Graduates | B15: Students in the Class of 3 years Prior | C15: Six-Year Adjusted Cohort Graduation Rate Measure
C16: =IF(OR(B16=0,B16="",A16>B16),"",A16/B16) -> 
A18: Seven-Year Graduates | B18: Students in the Class of 4 years Prior | C18: Seven-Year Adjusted Cohort Graduation Rate Measure
C19: =IF(OR(B19="",B19=0,A19>B19),"",A19/B19) -> 
A21: Eight-Year Graduates | B21: Students in the Class of 5 years Prior | C21: Eight-Year Adjusted Cohort Graduation Rate Measure
C22: =IF(OR(B22="",B22=0,A22>B22),"",A22/B22) -> 
A26: Graduation Component Technical Documentation

Sheet Overall
A1: How To Use This Simulator:
A2: Select the rating for each component on the Dropout Recovery Report Card
A4: Component Inputs | F4: Overall Percentage | M4: Overall Rating
A6: Component | B6: Rating | C6: Points | D6: Points Possible | N6: Rating Percentage | Q6: Rating
A7: Achievement | B7: =Achievement!O17 -> Not Rated | C7: =IF(B7="Exceeds Standards",20,IF(B7="Meets Standards",10,IF(B7="Does Not Meet Standards",0,""))) ->  | D7: =IF(AND(B7<>"",B7<>"Not Rated"),20,0) -> 0 | G7: Total Points | I7: Total Possible | J7: Overall Percentage | N7: 0.8 | O7: to | P7: 1 | Q7: Exceeds Standards
A8: Progress | B8: =Progress!J14 -> Not Rated | C8: =IF(B8="Exceeds Standards",30,IF(B8="Meets Standards",20,IF(B8="Does Not Meet Standards",0,""))) ->  | D8: =IF(AND(B8<>"",B8<>"Not Rated"),30,0) -> 0 | G8: =SUM(C7:C10) -> 0 | I8: =SUM(D7:D10) -> 0 | J8: =IF(I8=0,"",G8/I8) ->  | N8: 0.4 | O8: to | P8: 0.8 | Q8: Meets Standards | S8: Rating: | T8: =IF(AND(J8>=80%,J8<>""),"Exceeds Standards",IF(AND(J8>=40%,J8<80%,J8<>""),"Meets Standards",IF(AND(J8<40%,J8<>""),"Does Not Meet Standards",IF(J8="","Not Rated","Error")))) -> Not Rated
A9: Gap Closing | B9: ='Gap Closing'!T64 -> Not Rated | C9: =IF(B9="Exceeds Standards",20,IF(B9="Meets Standards",10,IF(B9="Does Not Meet Standards",0,IF(B9="Not Rated","","")))) ->  | D9: =IF(AND(B9<>"",B9<>"Not Rated"),20,0) -> 0 | N9: 0 | O9: to | P9: 0.4 | Q9: Does Not Meet Standards
A10: Graduation | B10: =Graduation!Q11 -> Not Rated | C10: =IF(B10="Does Not Meet Standards",0,IF(B10="Meets Standards",20,IF(B10="Exceeds Standards", 30, ""))) ->  | D10: =IF(AND(B10<>"",B10<>"Not Rated"),30,0) -> 0
A14: Overall and Component Rating Technical Documentation
A15: *It is possible for a building rated as "Does Not Meet Standards" to receive an overall rating bump if both the assessment passage rate and the individual graduation rates improve by at least ten percent for two consecutive years. This is not included as an option in this calculator. Details are on the bottom of page 5 in the technical document.
